fUST/lending_fUST_20250206
["ID","MTS","AMOUNT","RATE_DAILY","PERIOD"]
[351911359,1738837632349,-14340.72357606,0.00011761,2]
[351911360,1738837632376,-423.22746095,0.00011761,2]
[351911361,1738837645393,-1900.96578868,0.00011761,2]
[351911362,1738837748221,-1942.70642546,0.00011527,2]
[351911363,1738837748244,-1719.08542905,0.00011643,2]
[351911364,1738837748267,-300.0,0.0001176,2]
[351911365,1738837748292,-8235.08317431,0.00011761,2]
[351911366,1738837748315,-1000.0,0.00012,12]
[351911367,1738837748542,-1000.0,0.00012,2]
[351911368,1738837748567,-19017.21771446,0.00012,2]
[351911369,1738837754096,-5625.42942375,0.00012,2]
[351911370,1738837757123,-133.63652285,0.00012,2]
[351911371,1738837757144,-846.36347715,0.00012054,2]
[351911372,1738837762102,-53.63652285,0.00012054,2]
[351911373,1738837762124,-310.47740651,0.00012338,2]
[351911374,1738837762145,-227.80607064,0.000127,2]
[351911375,1738837765114,-10759.84403816,0.000127,2]
[351911376,1738837771111,-2750.6818737,0.000127,2]
[351911412,1738837832339,-300.0,0.00012699,2]
[351911413,1738837832348,-1338.97718917,0.000127,2]
[351911418,1738837837917,-654.79,0.00010959,2]
[351911419,1738837837927,-126.48293045,0.000127,2]
[351911420,1738837837963,-211.21842096,0.000127,2]
[351911421,1738837838034,-14584.98947692,0.000127,2]
[351911422,1738837838046,-38702.08525453,0.000128,2]
[351911423,1738837838056,-199311.36392648,0.00013,2]
[351911424,1738837838065,-1000.0,0.00013,13]
[351911425,1738837838075,-1000.0,0.00013,3]
[351911426,1738837838084,-7438.69753278,0.00013575,2]
[351911427,1738837838095,-4195.04201259,0.000136,2]
[351911428,1738837838104,-332.22543595,0.00013615,2]
[351911429,1738837838114,-507.98663694,0.00013673,2]
[351911430,1738837838125,-500.0,0.00013673,2]
[351911431,1738837838136,-151.0,0.0001369,2]
[351911432,1738837838146,-178.7979496,0.00013697,2]
[351911433,1738837838156,-500.0,0.00013697,2]
[351911434,1738837838165,-500.0,0.00013697,2]
[351911435,1738837838175,-500.0,0.00013697,2]
[351911436,1738837838184,-387.67092734,0.00013697,2]
[351911437,1738837838194,-500.0,0.00013698,2]
[351911438,1738837838204,-505.33094631,0.00013698,2]
[351911439,1738837838214,-500.0,0.00013698,2]
[351911440,1738837838224,-500.0,0.00013698,2]
[351911441,1738837838234,-432.35824208,0.00013698,2]
[351911442,1738837838244,-500.0,0.00013698,2]
[351911443,1738837838254,-500.0,0.00013698,2]
[351911444,1738837838264,-500.0,0.00013698,2]
[351911445,1738837838274,-500.0,0.00013698,2]
[351911446,1738837838284,-500.0,0.00013698,2]
[351911447,1738837838293,-500.0,0.00013698,2]
[351911448,1738837838302,-500.0,0.00013698,2]
[351911449,1738837838312,-500.0,0.00013698,2]
[351911450,1738837838321,-500.0,0.00013698,2]
[351911451,1738837838331,-500.0,0.00013698,2]
[351911452,1738837838340,-500.0,0.00013698,2]
[351911453,1738837838350,-500.0,0.00013698,2]
[351911454,1738837838359,-500.0,0.00013698,2]
[351911455,1738837838368,-500.0,0.00013698,2]
[351911456,1738837838378,-500.0,0.00013698,2]
[351911457,1738837838387,-500.0,0.00013698,2]
[351911458,1738837838397,-500.0,0.00013698,2]
[351911459,1738837838406,-500.0,0.00013698,2]
[351911460,1738837838415,-500.0,0.00013698,2]
[351911461,1738837838425,-500.0,0.00013698,2]
[351911462,1738837838434,-500.0,0.00013698,2]
[351911463,1738837838443,-508.13105513,0.00013698,2]
[351911464,1738837838453,-513.11074289,0.00013698,2]
[351911465,1738837838462,-500.0,0.00013698,2]
[351911466,1738837838471,-500.0,0.00013698,2]
[351911467,1738837838481,-500.0,0.00013698,2]
[351911468,1738837838491,-500.0,0.00013698,2]
[351911469,1738837838500,-536.45,0.00013698,2]
[351911470,1738837838509,-500.0,0.00013698,2]
[351911471,1738837838519,-500.0,0.00013698,2]
[351911472,1738837838528,-500.0,0.00013698,2]
[351911473,1738837838538,-674.28,0.00013698,2]
[351911474,1738837838547,-500.0,0.00013698,2]
[351911475,1738837838557,-500.0,0.00013698,2]
[351911476,1738837838567,-807.6,0.00013698,2]
[351911477,1738837838576,-500.0,0.00013698,2]
[351911478,1738837838586,-500.0,0.00013698,2]
[351911479,1738837838596,-500.0,0.00013698,2]
[351911480,1738837838605,-500.0,0.00013698,2]
[351911481,1738837838615,-500.0,0.00013698,2]
[351911482,1738837838624,-500.0,0.00013698,2]
[351911483,1738837838634,-500.0,0.00013698,2]
[351911484,1738837838643,-500.0,0.00013698,2]
[351911485,1738837838652,-500.0,0.00013698,2]
[351911486,1738837838662,-389.23331639,0.00013698,2]
[351911487,1738837838671,-500.0,0.00013698,2]
[351911488,1738837838681,-500.0,0.00013698,2]
[351911489,1738837838690,-500.0,0.00013698,2]
[351911490,1738837838701,-500.0,0.00013698,2]
[351911491,1738837838710,-731.83,0.00013698,2]
[351911492,1738837838719,-500.0,0.00013698,2]
[351911493,1738837838729,-500.0,0.00013698,2]
[351911494,1738837838739,-1246.55,0.00013698,2]
[351911495,1738837838748,-500.0,0.00013698,2]
[351911496,1738837838758,-500.0,0.00013698,2]
[351911497,1738837838767,-500.0,0.00013698,2]
[351911498,1738837838777,-500.0,0.00013698,2]
[351911499,1738837838786,-1300.45,0.00013698,2]
[351911500,1738837838795,-500.0,0.00013698,2]
[351911501,1738837838805,-611.22,0.00013698,2]
[351911502,1738837838814,-500.0,0.00013698,2]
[351911503,1738837838823,-676.37,0.00013698,2]
[351911504,1738837838832,-500.0,0.00013698,2]
[351911505,1738837838842,-500.0,0.00013698,2]
[351911506,1738837838851,-500.0,0.00013698,2]
[351911507,1738837838861,-500.0,0.00013698,2]
[351911508,1738837838870,-500.0,0.00013698,2]
[351911509,1738837838879,-500.0,0.00013698,2]
[351911510,1738837838888,-909.47,0.00013698,2]
[351911511,1738837838898,-500.0,0.00013698,2]
[351911512,1738837838908,-500.0,0.00013698,2]
[351911513,1738837838917,-500.0,0.00013698,2]
[351911514,1738837838927,-500.0,0.00013698,2]
[351911515,1738837838938,-500.0,0.00013698,2]
[351911516,1738837838948,-500.0,0.00013698,2]
[351911517,1738837838959,-500.0,0.00013698,2]
[351911518,1738837838968,-500.0,0.00013698,2]
[351911519,1738837838978,-1221.15,0.00013698,2]
[351911520,1738837838987,-500.0,0.00013698,2]
[351911521,1738837838997,-1101.43,0.00013698,2]
[351911522,1738837839007,-582.14,0.00013698,2]
[351911523,1738837839016,-500.0,0.00013698,2]
[351911524,1738837839026,-500.0,0.00013698,2]
[351911525,1738837839035,-500.0,0.00013698,2]
[351911526,1738837839048,-500.0,0.00013698,2]
[351911527,1738837839058,-500.0,0.00013698,2]
[351911528,1738837839068,-500.0,0.00013698,2]
[351911529,1738837839078,-500.0,0.00013698,2]
[351911530,1738837839087,-500.0,0.00013698,2]
[351911531,1738837839098,-500.0,0.00013698,2]
[351911532,1738837839107,-500.0,0.00013698,2]
[351911533,1738837839117,-500.0,0.00013698,2]
[351911534,1738837839127,-312.37,0.00013698,2]
[351911535,1738837839136,-500.0,0.00013698,2]
[351911536,1738837839145,-1444.14,0.00013698,2]
[351911537,1738837839155,-500.0,0.00013698,2]
[351911538,1738837839165,-500.0,0.00013698,2]
[351911539,1738837839175,-656.79,0.00013698,2]
[351911540,1738837839185,-500.0,0.00013698,2]
[351911541,1738837839194,-500.0,0.00013698,2]
[351911542,1738837839203,-1101.97,0.00013698,2]
[351911543,1738837839213,-500.0,0.00013698,2]
[351911544,1738837839222,-608.14,0.00013698,2]
[351911545,1738837839232,-500.0,0.00013698,2]
[351911546,1738837839241,-500.0,0.00013698,2]
[351911547,1738837839250,-500.0,0.00013698,2]
[351911548,1738837839260,-557.88,0.00013698,2]
[351911549,1738837839270,-500.0,0.00013698,2]
[351911550,1738837839279,-553.76790137,0.00013698,2]
[351911551,1738837839289,-500.0,0.00013698,2]
[351911552,1738837839299,-534.02,0.00013698,2]
[351911553,1738837839308,-500.0,0.00013698,2]
[351911554,1738837839317,-500.0,0.00013698,2]
[351911555,1738837839328,-500.0,0.00013698,2]
[351911556,1738837839338,-500.0,0.00013698,2]
[351911557,1738837839347,-500.0,0.00013698,2]
[351911558,1738837839357,-500.0,0.00013698,2]
[351911560,1738837839367,-968.49,0.00013698,2]
[351911562,1738837839376,-1055.65,0.00013698,2]
[351911564,1738837839385,-336.88938994,0.00013698,2]
[351911566,1738837839395,-3326.98,0.00013698,2]
[351911568,1738837839405,-500.0,0.00013698,2]
[351911569,1738837839414,-500.0,0.00013698,2]
[351911571,1738837839423,-500.0,0.00013698,2]
[351911573,1738837839433,-8010.75,0.00013698,2]
[351911574,1738837839442,-500.0,0.00013698,2]
[351911575,1738837839452,-500.0,0.00013698,2]
[351911576,1738837839462,-500.0,0.00013698,2]
[351911577,1738837839471,-778.67,0.00013698,2]
[351911578,1738837839480,-500.0,0.00013698,2]
[351911579,1738837839490,-500.0,0.00013698,2]
[351911580,1738837839499,-1186.98,0.00013698,2]
[351911581,1738837839508,-500.0,0.00013698,2]
[351911582,1738837839517,-500.0,0.00013698,2]
[351911583,1738837839527,-1247.5,0.00013698,2]
[351911584,1738837839536,-500.0,0.00013698,2]
[351911585,1738837839545,-500.0,0.00013698,2]
[351911586,1738837839554,-500.0,0.00013698,2]
[351911587,1738837839564,-1509.8,0.00013698,2]
[351911588,1738837839573,-1243.99,0.00013698,2]
[351911589,1738837839583,-500.0,0.00013698,2]
[351911590,1738837839592,-500.0,0.00013698,2]
[351911591,1738837839601,-500.0,0.00013698,2]
[351911592,1738837839611,-2087.82,0.00013698,2]
[351911593,1738837839620,-4258.69,0.00013698,2]
[351911594,1738837839640,-42540.3,0.00013698,2]
[351911595,1738837839650,-500.0,0.00013698,2]
[351911596,1738837839660,-2007.01,0.00013698,2]
[351911597,1738837839671,-2352.69,0.00013698,2]
[351911598,1738837839681,-500.0,0.00013698,2]
[351911599,1738837839691,-500.0,0.00013698,2]
[351911600,1738837839700,-616.8449243,0.00013698,2]
[351911602,1738837839710,-746.56,0.00013698,2]
[351911604,1738837839719,-500.0,0.00013698,2]
[351911606,1738837839729,-1423.82,0.00013698,2]
[351911607,1738837839739,-5980.93,0.00013698,2]
[351911608,1738837839749,-500.0,0.00013698,2]
[351911609,1738837839759,-500.0,0.00013698,2]
[351911611,1738837839769,-1613.61,0.00013698,2]
[351911612,1738837839778,-500.0,0.00013698,2]
[351911613,1738837839788,-500.0,0.00013698,2]
[351911614,1738837839798,-16755.47,0.00013698,2]
[351911615,1738837839808,-1119.66,0.00013698,2]
[351911616,1738837839817,-500.0,0.00013698,2]
[351911617,1738837839827,-500.0,0.00013698,2]
[351911618,1738837839836,-2210.45,0.00013698,2]
[351911619,1738837839846,-1367.52,0.00013698,2]
[351911620,1738837839857,-500.0,0.00013698,2]
[351911621,1738837839867,-500.0,0.00013698,2]
[351911622,1738837839877,-500.0,0.00013698,2]
[351911624,1738837839886,-500.0,0.00013698,2]
[351911626,1738837839896,-500.0,0.00013698,2]
[351911627,1738837839906,-369.55,0.00013698,2]
[351911629,1738837839916,-500.0,0.00013698,2]
[351911631,1738837839926,-500.0,0.00013698,2]
[351911632,1738837839935,-774.54,0.00013698,2]
[351911633,1738837839946,-500.0,0.00013698,2]
[351911634,1738837839956,-1519.87,0.00013698,2]
[351911635,1738837839966,-500.0,0.00013698,2]
[351911636,1738837839976,-500.0,0.00013698,2]
[351911637,1738837839986,-684.83,0.00013698,2]
[351911638,1738837839996,-500.0,0.00013698,2]
[351911639,1738837840006,-500.0,0.00013698,2]
[351911640,1738837840015,-591.08176997,0.00013698,2]
[351911641,1738837840025,-500.0,0.00013698,2]
[351911642,1738837840035,-449.72302827,0.00013698,2]
[351911643,1738837840047,-500.0,0.00013698,2]
[351911644,1738837840058,-500.0,0.00013698,2]
[351911645,1738837840068,-789.91,0.00013698,2]
[351911646,1738837840078,-500.0,0.00013698,2]
[351911647,1738837840088,-500.0,0.00013698,2]
[351911648,1738837840098,-500.0,0.00013698,2]
[351911649,1738837840107,-500.0,0.00013698,2]
[351911650,1738837840117,-678.4,0.00013698,2]
[351911651,1738837840128,-841.31,0.00013698,2]
[351911652,1738837840138,-500.0,0.00013698,2]
[351911653,1738837840147,-196.03949853,0.00013698,2]
[351911654,1738837840157,-500.0,0.00013698,2]
[351911655,1738837840167,-500.0,0.00013698,2]
[351911656,1738837840178,-500.0,0.00013698,2]
[351911657,1738837840188,-3595.31,0.00013698,2]
[351911658,1738837840198,-500.0,0.00013698,2]
[351911659,1738837840207,-500.0,0.00013698,2]
[351911660,1738837840217,-500.0,0.00013698,2]
[351911661,1738837840227,-795.3,0.00013698,2]
[351911662,1738837840236,-500.0,0.00013698,2]
[351911663,1738837840246,-500.0,0.00013698,2]
[351911664,1738837840255,-686.01,0.00013698,2]
[351911665,1738837840265,-500.0,0.00013698,2]
[351911666,1738837840274,-500.0,0.00013698,2]
[351911667,1738837840284,-1580.08,0.00013698,2]
[351911668,1738837840294,-500.0,0.00013698,2]
[351911669,1738837840304,-3472.17,0.00013698,2]
[351911670,1738837840313,-500.0,0.00013698,2]
[351911671,1738837840323,-3236.78,0.00013698,2]
[351911672,1738837840332,-837.57,0.00013698,2]
[351911673,1738837840342,-500.0,0.00013698,2]
[351911674,1738837840352,-500.0,0.00013698,2]
[351911675,1738837840362,-1821.59,0.00013698,2]
[351911676,1738837840371,-1699.7,0.00013698,2]
[351911677,1738837840382,-500.0,0.00013698,2]
[351911678,1738837840391,-842.83,0.00013698,2]
[351911679,1738837840402,-1348.98,0.00013698,2]
[351911680,1738837840412,-715.9,0.00013698,2]
[351911681,1738837840421,-9132.91,0.00013698,2]
[351911682,1738837840432,-500.0,0.00013698,2]
[351911683,1738837840442,-500.0,0.00013698,2]
[351911684,1738837840452,-500.0,0.00013698,2]
[351911685,1738837840461,-3060.88,0.00013698,2]
[351911686,1738837840471,-528.5,0.00013698,2]
[351911687,1738837840480,-500.0,0.00013698,2]
[351911688,1738837840490,-500.0,0.00013698,2]
[351911689,1738837840499,-671.1,0.00013698,2]
[351911690,1738837840509,-500.0,0.00013698,2]
[351911691,1738837840519,-196.93508722,0.00013698,2]
[351911692,1738837840528,-500.0,0.00013698,2]
[351911693,1738837840538,-14374.97,0.00013698,2]
[351911694,1738837840547,-969.62,0.00013698,2]
[351911695,1738837840557,-500.0,0.00013698,2]
[351911696,1738837840758,-500.0,0.00013698,2]
[351911697,1738837840769,-500.0,0.00013698,2]
[351911698,1738837840779,-2118.22,0.00013698,2]
[351911699,1738837840788,-3205.51,0.00013698,2]
[351911700,1738837840798,-500.0,0.00013698,2]
[351911701,1738837840808,-500.0,0.00013698,2]
[351911702,1738837840818,-500.0,0.00013698,2]
[351911703,1738837840827,-1305.12,0.00013698,2]
[351911704,1738837840837,-246.797924,0.00013699,2]
[351911705,1738837840846,-872.060371,0.00013699,2]
[351911706,1738837840856,-500.0,0.00013699,2]
[351911707,1738837840867,-500.0,0.00013699,2]
[351911708,1738837840876,-500.0,0.00013699,2]
[351911709,1738837840886,-500.0,0.00013699,2]
[351911710,1738837840895,-157.53281517,0.00013699,2]
[351911711,1738837840905,-500.0,0.00013699,2]
[351911712,1738837840915,-500.0,0.00013699,2]
[351911713,1738837840925,-500.0,0.00013699,2]
[351911714,1738837840935,-500.0,0.00013699,2]
[351911715,1738837840945,-500.0,0.00013699,2]
[351911716,1738837840955,-500.0,0.00013699,2]
[351911717,1738837840965,-500.0,0.00013699,2]
[351911718,1738837840974,-500.0,0.00013699,2]
[351911719,1738837840984,-500.0,0.00013699,2]
[351911720,1738837840993,-500.0,0.00013699,2]
[351911721,1738837841003,-500.0,0.00013699,2]
[351911722,1738837841013,-500.0,0.00013699,2]
[351911723,1738837841022,-500.0,0.00013699,2]
[351911724,1738837841031,-500.0,0.00013699,2]
[351911725,1738837841041,-500.0,0.00013699,2]
[351911726,1738837841054,-500.0,0.00013699,2]
[351911727,1738837841063,-500.0,0.00013699,2]
[351911728,1738837841072,-500.0,0.00013699,2]
[351911729,1738837841082,-500.0,0.00013699,2]
[351911730,1738837841094,-500.0,0.00013699,2]
[351911731,1738837841104,-588.46153846,0.00013699,2]
[351911732,1738837841113,-588.46153846,0.00013699,2]
[351911733,1738837841123,-588.46153846,0.00013699,2]
[351911734,1738837841133,-588.46153846,0.00013699,2]
[351911735,1738837841145,-588.46153846,0.00013699,2]
[351911736,1738837841154,-588.46153846,0.00013699,2]
[351911737,1738837841163,-588.46153846,0.00013699,2]
[351911738,1738837841173,-588.46153846,0.00013699,2]
[351911739,1738837841182,-588.46153846,0.00013699,2]
[351911740,1738837841191,-588.46153846,0.00013699,2]
[351911741,1738837841200,-588.46153846,0.00013699,2]
[351911742,1738837841210,-588.46153846,0.00013699,2]
[351911743,1738837841220,-588.46153846,0.00013699,2]
[351911744,1738837841230,-588.46153846,0.00013699,2]
[351911745,1738837841240,-588.46153846,0.00013699,2]
[351911746,1738837841250,-588.46153846,0.00013699,2]
[351911747,1738837841259,-588.46153846,0.00013699,2]
[351911748,1738837841269,-588.46153846,0.00013699,2]
[351911749,1738837841280,-588.46153846,0.00013699,2]
[351911750,1738837841290,-588.46153846,0.00013699,2]
[351911751,1738837841301,-588.46153846,0.00013699,2]
[351911752,1738837841311,-588.46153846,0.00013699,2]
[351911753,1738837841320,-588.46153846,0.00013699,2]
[351911754,1738837841332,-588.46153846,0.00013699,2]
[351911755,1738837841341,-588.46153846,0.00013699,2]
[351911756,1738837841351,-588.46153846,0.00013699,2]
[351911757,1738837841360,-588.46153846,0.00013699,2]
[351911758,1738837841369,-588.46153846,0.00013699,2]
[351911759,1738837841379,-588.46153846,0.00013699,2]
[351911760,1738837841388,-588.46153846,0.00013699,2]
[351911761,1738837841398,-588.46153846,0.00013699,2]
[351911762,1738837841407,-588.46153846,0.00013699,2]
[351911763,1738837841416,-588.46153846,0.00013699,2]
[351911764,1738837841426,-588.46153846,0.00013699,2]
[351911765,1738837841435,-588.46153846,0.00013699,2]
[351911766,1738837841445,-588.46153846,0.00013699,2]
[351911767,1738837841456,-588.46153846,0.00013699,2]
[351911768,1738837841466,-588.46153846,0.00013699,2]
[351911769,1738837841475,-588.46153846,0.00013699,2]
[351911770,1738837841485,-588.46153846,0.00013699,2]
[351911771,1738837841494,-588.46153846,0.00013699,2]
[351911772,1738837841503,-588.46153846,0.00013699,2]
[351911773,1738837841512,-588.46153846,0.00013699,2]
[351911774,1738837841522,-588.46153846,0.00013699,2]
[351911775,1738837841531,-588.46153846,0.00013699,2]
[351911776,1738837841541,-588.46153846,0.00013699,2]
[351911777,1738837841550,-588.46153846,0.00013699,2]
[351911778,1738837841560,-588.46153846,0.00013699,2]
[351911779,1738837841569,-588.46153846,0.00013699,2]
[351911780,1738837841578,-588.46153846,0.00013699,2]
[351911781,1738837841587,-588.46153846,0.00013699,2]
[351911782,1738837841597,-588.46153846,0.00013699,2]
[351911783,1738837841606,-588.46153846,0.00013699,2]
[351911784,1738837841616,-588.46153846,0.00013699,2]
[351911785,1738837841625,-579.29070929,0.00013699,2]
[351911786,1738837841635,-579.29070929,0.00013699,2]
[351911787,1738837841644,-579.29070929,0.00013699,2]
[351911788,1738837841653,-579.29070929,0.00013699,2]
[351911789,1738837841663,-579.29070929,0.00013699,2]
[351911790,1738837841672,-579.29070929,0.00013699,2]
[351911791,1738837841682,-579.29070929,0.00013699,2]
[351911792,1738837841694,-579.29070929,0.00013699,2]
[351911793,1738837841703,-579.29070929,0.00013699,2]
[351911794,1738837841713,-579.29070929,0.00013699,2]
[351911795,1738837841722,-579.29070929,0.00013699,2]
[351911796,1738837841731,-241.1842793,0.00013801,2]
[351911797,1738837841740,-153.0,0.00013808,2]
[351911798,1738837841749,-500.0,0.00013835,2]
[351911799,1738837841768,-500.0,0.00013835,2]
[351911800,1738837841777,-500.0,0.00013835,2]
[351911801,1738837841787,-500.0,0.00013835,2]
[351911802,1738837841796,-500.0,0.00013835,2]
[351911803,1738837841805,-500.0,0.00013835,2]
[351911804,1738837841814,-330.0769895,0.00013835,2]
[351911805,1738837841823,-636.61,0.00013835,2]
[351911806,1738837841832,-500.0,0.00013835,2]
[351911807,1738837841841,-500.0,0.00013835,2]
[351911808,1738837841850,-500.0,0.00013835,2]
[351911809,1738837841859,-424.86869562,0.00013835,2]
[351911810,1738837841868,-469.8873639,0.00013835,2]
[351911811,1738837841877,-500.0,0.00013835,2]
[351911812,1738837841886,-500.0,0.00013835,2]
[351911813,1738837841896,-500.0,0.00013835,2]
[351911814,1738837841905,-500.0,0.00013835,2]
[351911815,1738837841914,-500.0,0.00013835,2]
[351911816,1738837841923,-500.0,0.00013835,2]
[351911817,1738837841934,-500.0,0.00013835,2]
[351911818,1738837841943,-536.45,0.00013835,2]
[351911819,1738837841952,-500.0,0.00013835,2]
[351911820,1738837841964,-500.0,0.00013835,2]
[351911821,1738837841974,-674.28,0.00013835,2]
[351911822,1738837841983,-500.0,0.00013835,2]
[351911823,1738837841992,-807.6,0.00013835,2]
[351911824,1738837842001,-500.0,0.00013835,2]
[351911825,1738837842011,-500.0,0.00013835,2]
[351911826,1738837842020,-500.0,0.00013835,2]
[351911827,1738837842030,-500.0,0.00013835,2]
[351911828,1738837842040,-500.0,0.00013835,2]
[351911829,1738837842051,-500.0,0.00013835,2]
[351911830,1738837842061,-500.0,0.00013835,2]
[351911831,1738837842071,-500.0,0.00013835,2]
[351911832,1738837842080,-500.0,0.00013835,2]
[351911833,1738837842091,-500.0,0.00013835,2]
[351911834,1738837842101,-560.7365571,0.00013835,2]
[351911835,1738837842110,-500.0,0.00013835,2]
[351911836,1738837842120,-731.83,0.00013835,2]
[351911837,1738837842131,-1246.55,0.00013835,2]
[351911838,1738837842140,-500.0,0.00013835,2]
[351911839,1738837842149,-500.0,0.00013835,2]
[351911840,1738837842159,-1300.45,0.00013835,2]
[351911841,1738837842168,-500.0,0.00013835,2]
[351911842,1738837842179,-611.22,0.00013835,2]
[351911843,1738837842189,-676.37,0.00013835,2]
[351911844,1738837842198,-500.0,0.00013835,2]
[351911845,1738837842208,-500.0,0.00013835,2]
[351911846,1738837842217,-500.0,0.00013835,2]
[351911847,1738837842226,-500.0,0.00013835,2]
[351911848,1738837842236,-500.0,0.00013835,2]
[351911849,1738837842246,-500.0,0.00013835,2]
[351911850,1738837842255,-909.47,0.00013835,2]
[351911851,1738837842264,-500.0,0.00013835,2]
[351911852,1738837842274,-180.26221922,0.00013835,2]
[351911853,1738837842283,-560.15,0.00013835,2]
[351911854,1738837842293,-500.0,0.00013835,2]
[351911855,1738837842302,-1221.15,0.00013835,2]
[351911856,1738837842312,-296.04528776,0.00013835,2]
[351911857,1738837842321,-1101.43,0.00013835,2]
[351911858,1738837842331,-582.14,0.00013835,2]
[351911859,1738837842340,-500.0,0.00013835,2]
[351911860,1738837842350,-500.0,0.00013835,2]
[351911861,1738837842360,-500.0,0.00013835,2]
[351911862,1738837842370,-500.0,0.00013835,2]
[351911863,1738837842379,-500.0,0.00013835,2]
[351911864,1738837842388,-500.0,0.00013835,2]
[351911865,1738837842397,-500.0,0.00013835,2]
[351911866,1738837842407,-500.0,0.00013835,2]
[351911868,1738837842420,-500.0,0.00013835,2]
[351911869,1738837842430,-500.0,0.00013835,2]
[351911870,1738837842440,-1444.14,0.00013835,2]
[351911871,1738837842450,-656.79,0.00013835,2]
[351911873,1738837842460,-500.0,0.00013835,2]
[351911874,1738837842469,-500.0,0.00013835,2]
[351911875,1738837842480,-1101.97,0.00013835,2]
[351911876,1738837842490,-608.14,0.00013835,2]
[351911877,1738837842499,-500.0,0.00013835,2]
[351911878,1738837842509,-500.0,0.00013835,2]
[351911880,1738837842519,-557.88,0.00013835,2]
[351911882,1738837842529,-500.0,0.00013835,2]
[351911883,1738837842539,-248.77942215,0.00013835,2]
[351911884,1738837842548,-534.02,0.00013835,2]
[351911885,1738837842557,-500.0,0.00013835,2]
[351911887,1738837842567,-500.0,0.00013835,2]
[351911889,1738837842578,-500.0,0.00013835,2]
[351911891,1738837842588,-500.0,0.00013835,2]
[351911893,1738837842598,-968.49,0.00013835,2]
[351911895,1738837842607,-1055.65,0.00013835,2]
[351911897,1738837842618,-3326.98,0.00013835,2]
[351911899,1738837842628,-500.0,0.00013835,2]
[351911901,1738837842637,-500.0,0.00013835,2]
[351911903,1738837842647,-8010.75,0.00013835,2]
[351911905,1738837842658,-234.65019654,0.00013835,2]
[351911908,1738837842667,-500.0,0.00013835,2]
[351911910,1738837842676,-500.0,0.00013835,2]
[351911912,1738837842687,-778.67,0.00013835,2]
[351911914,1738837842696,-500.0,0.00013835,2]
[351911916,1738837842706,-1186.98,0.00013835,2]
[351911918,1738837842715,-500.0,0.00013835,2]
[351911920,1738837842725,-1247.5,0.00013835,2]
[351911922,1738837842734,-500.0,0.00013835,2]
[351911924,1738837842744,-500.0,0.00013835,2]
[351911926,1738837842754,-1509.8,0.00013835,2]
[351911928,1738837842763,-1243.99,0.00013835,2]
[351911930,1738837842773,-500.0,0.00013835,2]
[351911931,1738837842783,-500.0,0.00013835,2]
[351911932,1738837842792,-500.0,0.00013835,2]
[351911933,1738837842801,-2087.82,0.00013835,2]
[351911934,1738837842810,-4258.69,0.00013835,2]
[351911936,1738837842820,-42540.3,0.00013835,2]
[351911938,1738837842830,-500.0,0.00013835,2]
[351911939,1738837842839,-2007.01,0.00013835,2]
[351911940,1738837842849,-2352.69,0.00013835,2]
[351911941,1738837842858,-500.0,0.00013835,2]